fUST/lending_fUST_20250828
["ID","MTS","AMOUNT","RATE_DAILY","PERIOD"]
[381702263,1756315859289,-151.0,0.00021917,2]
[381702265,1756315859298,-2665.510646,0.00021917,2]
[381702267,1756315859307,-632.92,0.00021917,2]
[381702269,1756315859315,-2665.510646,0.00021917,2]
[381702271,1756315859324,-480.0,0.00021917,2]
[381702273,1756315859333,-480.0,0.00021917,2]
[381702275,1756315859342,-792.669927,0.00021917,2]
[381702277,1756315859351,-151.0,0.00021917,2]
[381702279,1756315859361,-792.669927,0.00021917,2]
[381702281,1756315859370,-151.0,0.00021917,2]
[381702283,1756315859379,-2665.510646,0.00021917,2]
[381702285,1756315859388,-792.669927,0.00021917,2]
[381702287,1756315859398,-151.0,0.00021917,2]
[381702289,1756315859407,-2665.510646,0.00021917,2]
[381702291,1756315859418,-2665.5106412,0.00021917,2]
[381702293,1756315859428,-562.31,0.00021917,2]
[381702295,1756315859438,-1677.51,0.00021917,2]
[381702297,1756315859448,-792.669927,0.00021917,2]
[381702299,1756315859458,-792.669927,0.00021917,2]
[381702301,1756315859468,-792.669927,0.00021917,2]
[381702303,1756315859478,-480.0,0.00021917,2]
[381702305,1756315859487,-500.19,0.00021917,2]
[381702307,1756315859497,-792.669927,0.00021917,2]
[381702309,1756315859507,-792.669927,0.00021917,2]
[381702311,1756315859517,-792.669927,0.00021917,2]
[381702313,1756315859527,-151.0,0.00021917,2]
[381702315,1756315859536,-480.0,0.00021917,2]
[381702317,1756315859548,-151.0,0.00021917,2]
[381702319,1756315859557,-220.811172,0.00021917,2]
[381702321,1756315859567,-480.0,0.00021917,2]
[381702323,1756315859580,-480.0,0.00021917,2]
[381702325,1756315859589,-792.669927,0.00021917,2]
[381702327,1756315859598,-523.31,0.00021917,2]
[381702329,1756315859608,-792.669927,0.00021917,2]
[381702331,1756315859618,-532.28,0.00021917,2]
[381702333,1756315859627,-151.0,0.00021917,2]
[381702335,1756315859637,-480.0,0.00021917,2]
[381702337,1756315859647,-792.66992,0.00021917,2]
[381702339,1756315859657,-480.0,0.00021917,2]
[381702341,1756315859666,-151.0,0.00021917,2]
[381702343,1756315859675,-151.0,0.00021917,2]
[381702345,1756315859685,-2955.96,0.00021917,2]
[381702347,1756315859694,-185.85512,0.00021917,2]
[381702349,1756315859703,-151.0,0.00021917,2]
[381702351,1756315859713,-151.0,0.00021917,2]
[381702353,1756315859722,-151.0,0.00021917,2]
[381702355,1756315859731,-151.0,0.00021917,2]
[381702357,1756315859740,-480.0,0.00021917,2]
[381702359,1756315859749,-151.0,0.00021917,2]
[381702361,1756315859760,-151.0,0.00021917,2]
[381702363,1756315859769,-151.0,0.00021917,2]
[381702365,1756315859778,-151.0,0.00021917,2]
[381702367,1756315859787,-151.0,0.00021917,2]
[381702369,1756315859797,-151.0,0.00021917,2]
[381702371,1756315859808,-480.0,0.00021917,2]
[381702373,1756315859817,-151.0,0.00021917,2]
[381702375,1756315859827,-505.61,0.00021917,2]
[381702377,1756315859837,-151.0,0.00021917,2]
[381702379,1756315859846,-244.219784,0.00021917,2]
[381702382,1756315859856,-151.0,0.00021917,2]
[381702384,1756315859865,-151.0,0.00021917,2]
[381702386,1756315859874,-874.64,0.00021917,2]
[381702388,1756315859883,-274.675854,0.00021917,2]
[381702390,1756315859892,-593.0,0.00021917,2]
[381702392,1756315859901,-151.0,0.00021917,2]
[381702394,1756315859910,-480.0,0.00021917,2]
[381702396,1756315859920,-151.0,0.00021917,2]
[381702398,1756315859929,-480.0,0.00021917,2]
[381702400,1756315859938,-151.0,0.00021917,2]
[381702402,1756315859947,-390.67044967,0.00021917,2]
[381702404,1756315859956,-480.0,0.00021917,2]
[381702406,1756315859965,-151.0,0.00021917,2]
[381702408,1756315859974,-151.0,0.00021917,2]
[381702410,1756315859984,-151.0,0.00021917,2]
[381702412,1756315859993,-480.0,0.00021917,2]
[381702414,1756315860002,-151.0,0.00021917,2]
[381702416,1756315860011,-151.0,0.00021917,2]
[381702418,1756315860020,-525.49,0.00021917,2]
[381702420,1756315860030,-151.0,0.00021917,2]
[381702422,1756315860039,-151.0,0.00021917,2]
[381702424,1756315860050,-151.0,0.00021917,2]
[381702426,1756315860060,-151.0,0.00021917,2]
[381702428,1756315860069,-151.0,0.00021917,2]
[381702430,1756315860079,-151.0,0.00021917,2]
[381702432,1756315860089,-480.0,0.00021917,2]
[381702434,1756315860098,-151.0,0.00021917,2]
[381702436,1756315860108,-151.0,0.00021917,2]
[381702438,1756315860118,-542.14,0.00021917,2]
[381702440,1756315860127,-151.0,0.00021917,2]
[381702442,1756315860137,-151.0,0.00021917,2]
[381702444,1756315860147,-151.0,0.00021917,2]
[381702446,1756315860156,-3139.91,0.00021917,2]
[381702448,1756315860166,-151.0,0.00021917,2]
[381702450,1756315860175,-480.0,0.00021917,2]
[381702452,1756315860185,-1307.67,0.00021917,2]
[381702454,1756315860195,-151.0,0.00021917,2]
[381702455,1756315860205,-790.4,0.00021917,2]
[381702456,1756315860215,-487.85,0.00021917,2]
[381702457,1756315860224,-151.0,0.00021917,2]
[381702458,1756315860233,-151.0,0.00021917,2]
[381702459,1756315860243,-508.29447791,0.00021917,2]
[381702460,1756315860253,-480.0,0.00021917,2]
[381702461,1756315860262,-673.27,0.00021917,2]
[381702462,1756315860271,-480.0,0.00021917,2]
[381702463,1756315860281,-480.0,0.00021917,2]
[381702464,1756315860290,-480.0,0.00021917,2]
[381702465,1756315860300,-480.0,0.00021917,2]
[381702466,1756315860310,-490.27,0.00021917,2]
[381702467,1756315860319,-1507.95,0.00021917,2]
[381702468,1756315860328,-500.0,0.00021917,2]
[381702469,1756315860337,-480.0,0.00021917,2]
[381702470,1756315860347,-500.0,0.00021917,2]
[381702471,1756315860356,-1488.87,0.00021917,2]
[381702472,1756315860365,-212.35016576,0.00021917,2]
[381702473,1756315860375,-480.0,0.00021917,2]
[381702474,1756315860385,-704.88,0.00021917,2]
[381702475,1756315860394,-480.0,0.00021917,2]
[381702476,1756315860404,-504.58,0.00021917,2]
[381702477,1756315860413,-1155.37,0.00021917,2]
[381702478,1756315860423,-480.0,0.00021917,2]
[381702479,1756315860434,-2208.714366,0.00021917,2]
[381702480,1756315860446,-480.0,0.00021917,2]
[381702481,1756315860459,-2208.714366,0.00021917,2]
[381702482,1756315860468,-1124.84,0.00021917,2]
[381702483,1756315860478,-480.0,0.00021917,2]
[381702484,1756315860491,-2208.714366,0.00021917,2]
[381702485,1756315860502,-480.0,0.00021917,2]
[381702486,1756315860514,-480.0,0.00021917,2]
[381702487,1756315860525,-151.0,0.00021917,2]
[381702488,1756315860535,-2208.714366,0.00021917,2]
[381702489,1756315860547,-3001.81,0.00021917,2]
[381702490,1756315860556,-151.0,0.00021917,2]
[381702491,1756315860566,-2208.714366,0.00021917,2]
[381702492,1756315860583,-480.0,0.00021917,2]
[381702493,1756315860592,-2208.714366,0.00021917,2]
[381702494,1756315860602,-151.0,0.00021917,2]
[381702495,1756315860612,-480.0,0.00021917,2]
[381702496,1756315860621,-852.13,0.00021917,2]
[381702497,1756315860631,-480.0,0.00021917,2]
[381702498,1756315860641,-2208.714366,0.00021917,2]
[381702499,1756315860652,-2208.714366,0.00021917,2]
[381702500,1756315860661,-808.37,0.00021917,2]
[381702501,1756315860671,-151.0,0.00021917,2]
[381702502,1756315860680,-2208.714366,0.00021917,2]
[381702503,1756315860690,-480.0,0.00021917,2]
[381702504,1756315860699,-151.0,0.00021917,2]
[381702505,1756315860709,-845.32,0.00021917,2]
[381702506,1756315860719,-156.897812,0.00021917,2]
[381702507,1756315860729,-480.0,0.00021917,2]
[381702508,1756315860738,-2208.714366,0.00021917,2]
[381702509,1756315860747,-2208.714366,0.00021917,2]
[381702510,1756315860757,-2208.71437,0.00021917,2]
[381702511,1756315860767,-1712.6,0.00021917,2]
[381702512,1756315860776,-1056.32,0.00021917,2]
[381702513,1756315860786,-480.0,0.00021917,2]
[381702514,1756315860798,-1736.27,0.00021917,2]
[381702515,1756315860807,-480.0,0.00021917,2]
[381702516,1756315860816,-480.0,0.00021917,2]
[381702517,1756315860826,-904.87,0.00021917,2]
[381702518,1756315860835,-480.0,0.00021917,2]
[381702519,1756315860844,-480.0,0.00021917,2]
[381702520,1756315860854,-809.45,0.00021917,2]
[381702521,1756315860863,-480.0,0.00021917,2]
[381702522,1756315860872,-480.0,0.00021917,2]
[381702523,1756315860882,-151.0,0.00021917,2]
[381702524,1756315860891,-151.0,0.00021917,2]
[381702525,1756315860900,-480.0,0.00021917,2]
[381702526,1756315860910,-151.0,0.00021917,2]
[381702527,1756315860919,-480.0,0.00021917,2]
[381702528,1756315860929,-151.0,0.00021917,2]
[381702529,1756315860940,-482.26589214,0.00021917,2]
[381702530,1756315860949,-151.0,0.00021917,2]
[381702531,1756315860959,-480.0,0.00021917,2]
[381702532,1756315860969,-151.0,0.00021917,2]
[381702533,1756315860978,-155.985567,0.00021917,2]
[381702534,1756315860988,-480.0,0.00021917,2]
[381702535,1756315860999,-151.0,0.00021917,2]
[381702536,1756315861008,-480.0,0.00021917,2]
[381702537,1756315861018,-151.0,0.00021917,2]
[381702538,1756315861028,-151.0,0.00021917,2]
[381702539,1756315861038,-480.0,0.00021917,2]
[381702540,1756315861049,-480.0,0.00021917,2]
[381702541,1756315861059,-480.0,0.00021917,2]
[381702542,1756315861069,-151.0,0.00021917,2]
[381702543,1756315861079,-151.0,0.00021917,2]
[381702544,1756315861088,-480.0,0.00021917,2]
[381702545,1756315861097,-1631.08,0.00021917,2]
[381702546,1756315861107,-151.0,0.00021917,2]
[381702547,1756315861117,-151.0,0.00021917,2]
[381702548,1756315861127,-480.0,0.00021917,2]
[381702549,1756315861136,-151.0,0.00021917,2]
[381702550,1756315861145,-151.0,0.00021917,2]
[381702551,1756315861154,-151.0,0.00021917,2]
[381702552,1756315861164,-442.9555528,0.00021917,2]
[381702553,1756315861173,-151.0,0.00021917,2]
[381702554,1756315861183,-151.0,0.00021917,2]
[381702555,1756315861192,-151.0,0.00021917,2]
[381702556,1756315861202,-151.0,0.00021917,2]
[381702557,1756315861211,-151.0,0.00021917,2]
[381702558,1756315861221,-480.0,0.00021917,2]
[381702559,1756315861230,-291.507741,0.00021917,2]
[381702560,1756315861239,-151.0,0.00021917,2]
[381702561,1756315861248,-151.0,0.00021917,2]
[381702562,1756315861258,-151.0,0.00021917,2]
[381702563,1756315861267,-151.0,0.00021917,2]
[381702564,1756315861277,-480.0,0.00021917,2]
[381702565,1756315861286,-151.0,0.00021917,2]
[381702566,1756315861297,-151.0,0.00021917,2]
[381702567,1756315861306,-151.0,0.00021917,2]
[381702568,1756315861315,-480.0,0.00021917,2]
[381702569,1756315861325,-151.0,0.00021917,2]
[381702570,1756315861334,-480.0,0.00021917,2]
[381702571,1756315861344,-151.0,0.00021917,2]
[381702572,1756315861353,-151.0,0.00021917,2]
[381702573,1756315861363,-151.0,0.00021917,2]
[381702574,1756315861372,-151.0,0.00021917,2]
[381702575,1756315861382,-151.0,0.00021917,2]
[381702576,1756315861391,-480.0,0.00021917,2]
[381702577,1756315861401,-480.0,0.00021917,2]
[381702578,1756315861410,-151.0,0.00021917,2]
[381702579,1756315861419,-480.0,0.00021917,2]
[381702580,1756315861581,-151.0,0.00021917,2]
[381702581,1756315861590,-151.0,0.00021917,2]
[381702583,1756315861600,-151.0,0.00021917,2]
[381702585,1756315861609,-825.527002,0.00021918,2]
[381702586,1756315861620,-825.527002,0.00021918,2]
[381702588,1756315861629,-825.527002,0.00021918,2]
[381702590,1756315861639,-825.527002,0.00021918,2]
[381702592,1756315861648,-825.527002,0.00021918,2]
[381702594,1756315861659,-825.527002,0.00021918,2]
[381702596,1756315861668,-825.527002,0.00021918,2]
[381702597,1756315861677,-825.527002,0.00021918,2]
[381702598,1756315861687,-825.527002,0.00021918,2]
[381702600,1756315861696,-825.527002,0.00021918,2]
[381702602,1756315861705,-825.527002,0.00021918,2]
[381702604,1756315861714,-825.527002,0.00021918,2]
[381702605,1756315861724,-825.527002,0.00021918,2]
[381702606,1756315861733,-825.527002,0.00021918,2]
[381702608,1756315861743,-825.527002,0.00021918,2]
[381702610,1756315861752,-825.527002,0.00021918,2]
[381702612,1756315861762,-825.527002,0.00021918,2]
[381702613,1756315861771,-825.527002,0.00021918,2]
[381702615,1756315861781,-825.527002,0.00021918,2]
[381702617,1756315861790,-825.52700972,0.00021918,2]
[381702619,1756315861802,-32973.2979769,0.00021918,2]
[381702621,1756315861811,-150.0,0.00021918,2]
[381702623,1756315861820,-200.0,0.00021918,2]
[381702625,1756315861830,-1000.0,0.00021921,2]
[381702627,1756315861839,-1000.0,0.00021921,2]
[381702629,1756315861848,-1000.0,0.00021921,2]
[381702631,1756315861857,-1000.0,0.00021921,2]
[381702633,1756315861867,-1000.0,0.00021921,2]
[381702635,1756315861877,-1000.0,0.00021921,2]
[381702636,1756315861886,-1000.0,0.00021921,2]
[381702637,1756315861895,-299.52040869,0.00021921,2]
[381702639,1756315861904,-153.81601857,0.00021921,2]
[381702641,1756315861913,-1000.0,0.00021921,2]
[381702643,1756315861922,-1000.0,0.00021921,2]
[381702645,1756315861932,-407.15470342,0.00021921,2]
[381702647,1756315861941,-1000.0,0.00021921,2]
[381702649,1756315861950,-500.0,0.00021921,2]
[381702651,1756315861960,-1000.0,0.00021921,2]
[381702653,1756315861969,-1000.0,0.00021921,2]
[381702654,1756315861979,-256.84276516,0.00021921,2]
[381702655,1756315861989,-500.0,0.00021921,2]
[381702656,1756315861999,-1000.0,0.00021921,2]
[381702657,1756315862009,-854.82994715,0.00021921,2]
[381702658,1756315862018,-1023.99391035,0.00021921,2]
[381702659,1756315862028,-504.0734374,0.00021921,2]
[381702660,1756315862038,-1000.0,0.00021921,2]
[381702661,1756315862048,-715.33499748,0.00021921,2]
[381702662,1756315862058,-1000.0,0.00021921,2]
[381702663,1756315862067,-1000.0,0.00021921,2]
[381702664,1756315862077,-503.6196867,0.00021921,2]
[381702665,1756315862086,-1000.0,0.00021921,2]
[381702666,1756315862096,-1000.0,0.00021921,2]
[381702667,1756315862105,-1000.0,0.00021921,2]
[381702668,1756315862114,-1112.0,0.00021921,2]
[381702669,1756315862123,-312.33279216,0.00021921,2]
[381702670,1756315862133,-531.38583119,0.00021921,2]
[381702671,1756315862142,-257.92893483,0.00021921,2]
[381702672,1756315862151,-151.0,0.00021921,2]
[381702673,1756315862161,-500.0,0.00021921,2]
[381702674,1756315862170,-500.0,0.00021921,2]
[381702675,1756315862180,-151.0,0.00021921,2]
[381702676,1756315862191,-500.0,0.00021921,2]
[381702677,1756315862200,-500.0,0.00021921,2]
[381702678,1756315862209,-151.0,0.00021921,2]
[381702679,1756315862218,-151.48383882,0.00021921,2]
[381702680,1756315862228,-304.28071032,0.00021921,2]
[381702681,1756315862238,-500.0,0.00021921,2]
[381702682,1756315862249,-151.0,0.00021921,2]
[381702683,1756315862258,-350.81864004,0.00021921,2]
[381702684,1756315862268,-151.0,0.00021921,2]
[381702685,1756315862277,-500.0,0.00021921,2]
[381702686,1756315862286,-151.0,0.00021921,2]
[381702687,1756315862298,-151.0,0.00021921,2]
[381702688,1756315862308,-151.0,0.00021921,2]
[381702689,1756315862317,-153.62565634,0.00021921,2]
[381702690,1756315862327,-151.0,0.00021921,7]
[381702691,1756315862336,-151.0,0.00021921,7]
[381702692,1756315862345,-151.0,0.00021921,7]
[381702693,1756315862355,-151.0,0.00021921,7]
[381702694,1756315862364,-153.0,0.00021938,2]
[381702695,1756315862373,-153.0,0.00021938,2]
[381702696,1756315862383,-153.0,0.00021938,2]
[381702697,1756315862392,-153.0,0.00021938,2]
[381702698,1756315862402,-153.0,0.00021938,2]
[381702699,1756315862412,-153.0,0.00021938,2]
[381702700,1756315862421,-500.0,0.00021973,2]
[381702701,1756315862431,-502.05494152,0.00021973,2]
[381702702,1756315862442,-500.0,0.00021973,2]
[381702703,1756315862451,-500.0,0.00021973,2]
[381702704,1756315862460,-150.92245155,0.00021973,2]
[381702705,1756315862470,-500.0,0.00021973,2]
[381702706,1756315862479,-500.0,0.00021973,2]
[381702707,1756315862489,-500.0,0.00021973,2]
[381702708,1756315862499,-500.0,0.00021973,2]
[381702709,1756315862508,-500.0,0.00021973,2]
[381702710,1756315862517,-500.0,0.00021973,2]
[381702711,1756315862527,-500.0,0.00021973,2]
[381702712,1756315862536,-500.0,0.00021973,2]
[381702713,1756315862547,-500.0,0.00021973,2]
[381702714,1756315862556,-500.0,0.00021973,2]
[381702715,1756315862565,-500.0,0.00021973,2]
[381702716,1756315862577,-500.0,0.00021973,2]
[381702717,1756315862586,-500.0,0.00021973,2]
[381702718,1756315862596,-500.0,0.00021973,2]
[381702719,1756315862605,-500.0,0.00021973,2]
[381702720,1756315862615,-153.37699255,0.00021973,2]
[381702721,1756315862624,-500.0,0.00021973,2]
[381702722,1756315862633,-500.0,0.00021973,2]
[381702723,1756315862643,-500.0,0.00021973,2]
[381702724,1756315862654,-529.88765004,0.00021973,2]
[381702725,1756315862664,-500.0,0.00021973,2]
[381702726,1756315862673,-500.0,0.00021973,2]
[381702727,1756315862683,-197.38868026,0.00021973,2]
[381702728,1756315862692,-258.92923988,0.00021973,2]
[381702729,1756315862701,-500.0,0.00021973,2]
[381702730,1756315862710,-500.0,0.00021973,2]
[381702731,1756315862721,-575.67741229,0.00021973,2]
[381702732,1756315862731,-500.0,0.00021973,2]
[381702733,1756315862741,-500.0,0.00021973,2]
[381702734,1756315862750,-500.0,0.00021973,2]
[381702735,1756315862760,-503.56407155,0.00021973,2]
[381702736,1756315862770,-500.0,0.00021973,2]
[381702737,1756315862779,-500.0,0.00021973,2]
[381702738,1756315862789,-500.60121131,0.00021973,2]
[381702739,1756315862799,-500.0,0.00021973,2]
[381702740,1756315862808,-500.0,0.00021973,2]
[381702741,1756315862818,-500.0,0.00021973,2]
[381702742,1756315862827,-500.0,0.00021973,2]
[381702743,1756315862837,-500.0,0.00021973,2]
[381702744,1756315862847,-500.0,0.00021973,2]
[381702745,1756315862857,-500.0,0.00021973,2]
[381702746,1756315862866,-151.0,0.0002199,7]
[381702747,1756315862876,-297.26444,0.0002199,7]
[381702748,1756315862885,-151.0,0.0002199,7]
[381702749,1756315862895,-151.0,0.0002199,7]
[381702750,1756315862904,-12707.75045307,0.0002199,7]
[381702751,1756315862913,-160.0,0.0002199,7]
[381702752,1756315862922,-425.44119842,0.0002199,7]
[381702753,1756315862932,-529.56067766,0.0002199,7]
[381702754,1756315862941,-216.14835892,0.0002199,7]
[381702755,1756315862950,-417.15472785,0.0002199,7]
[381702756,1756315862960,-168.0,0.00021996,2]
[381702757,1756315862969,-12048.14,0.00022,2]
[381702758,1756315862978,-65900.43,0.00022,7]
[381702759,1756315862988,-6800.07,0.00022,7]
[381702761,1756315862997,-151.0,0.00022,7]
[381702763,1756315863006,-1124.975755,0.00022,2]
[381702765,1756315863016,-12707.75045307,0.00022,7]
[381702767,1756315863027,-425.44119842,0.00022,7]
[381702769,1756315863036,-529.56067766,0.00022,7]
[381702771,1756315863048,-168.01383662,0.00022,10]
[381702773,1756315863059,-2519.73663771,0.00022,10]
[381702774,1756315863069,-216.14835892,0.00022,7]
[381702775,1756315863079,-417.15472785,0.00022,7]
[381702777,1756315863090,-5000.0,0.00022008,2]
[381702779,1756315863101,-500.0,0.0002201,2]
[381702781,1756315863110,-168.0,0.00022017,2]
[381702783,1756315863120,-168.0,0.00022054,2]
[381702785,1756315863129,-422.89,0.000221,2]
[381702787,1756315863139,-160.0,0.00022112,2]
[381702789,1756315863149,-12707.75045307,0.00022112,2]
[381702791,1756315863159,-160.0,0.00022113,2]
[381702793,1756315863169,-425.44119842,0.00022113,2]
[381702795,1756315863181,-232.59867797,0.00022113,2]
[381702797,1756315863191,-845.298898,0.00022113,2]
[381702799,1756315863200,-160.0,0.00022113,2]
[381702801,1756315863211,-160.0,0.00022113,2]
[381702803,1756315863221,-217.23771399,0.00022113,2]
[381702805,1756315863230,-160.0,0.00022113,2]
[381702807,1756315863241,-417.15472785,0.00022113,2]
[381702809,1756315863252,-160.0,0.00022113,2]
[381702811,1756315863261,-529.56067766,0.00022113,2]
[381702812,1756315863270,-216.14835892,0.00022113,2]
[381702814,1756315863280,-160.0,0.00022113,2]
[381702816,1756315863289,-160.0,0.00022113,2]
[381702818,1756315863300,-500.0,0.00022122,4]
[381702820,1756315863310,-150.0,0.00022173,2]
[381702822,1756315863320,-160.40370053,0.00022173,2]
[381702824,1756315863330,-480.0,0.00022191,2]
[381702826,1756315863340,-487.24,0.00022191,2]
[381702827,1756315863350,-482.88986836,0.00022191,2]
[381702828,1756315863360,-480.0,0.00022191,2]
[381702829,1756315863370,-480.0,0.00022191,2]
[381702830,1756315863380,-480.0,0.00022191,2]
[381702831,1756315863390,-480.0,0.00022191,2]
[381702832,1756315863400,-521.13,0.00022191,2]
[381702833,1756315863409,-480.0,0.00022191,2]
[381702834,1756315863418,-480.0,0.00022191,2]
[381702835,1756315863427,-480.0,0.00022191,2]
[381702836,1756315863436,-480.0,0.00022191,2]
[381702837,1756315863446,-480.0,0.00022191,2]
[381702838,1756315863455,-754.55,0.00022191,2]
[381702839,1756315863464,-319.70777967,0.00022191,2]
[381702840,1756315863474,-480.0,0.00022191,2]
[381702841,1756315863483,-480.0,0.00022191,2]
[381702842,1756315863492,-480.0,0.00022191,2]
[381702843,1756315863502,-480.0,0.00022191,2]
[381702844,1756315863512,-480.0,0.00022191,2]
[381702845,1756315863521,-415.90203473,0.00022191,2]
[381702846,1756315863531,-480.0,0.00022191,2]
[381702847,1756315863540,-480.0,0.00022191,2]
[381702848,1756315863550,-480.0,0.00022191,2]
[381702849,1756315863560,-480.0,0.00022191,2]
[381702850,1756315863571,-480.0,0.00022191,2]
[381702851,1756315863584,-480.0,0.00022191,2]
[381702852,1756315863594,-480.0,0.00022191,2]
[381702853,1756315863604,-480.0,0.00022191,2]
[381702854,1756315863615,-186.92480939,0.00022191,2]
[381702855,1756315863626,-480.0,0.00022191,2]
[381702856,1756315863636,-480.0,0.00022191,2]
[381702857,1756315863646,-1012.65,0.00022191,2]
[381702858,1756315863658,-480.0,0.00022191,2]
[381702859,1756315863668,-480.0,0.00022191,2]
[381702861,1756315863678,-480.0,0.00022191,2]
[381702863,1756315863688,-499.63,0.00022191,2]
[381702865,1756315863698,-480.0,0.00022191,2]
[381702867,1756315863708,-480.0,0.00022191,2]
[381702869,1756315863718,-480.0,0.00022191,2]
[381702871,1756315863729,-480.0,0.00022191,2]
[381702873,1756315863739,-480.0,0.00022191,2]
[381702875,1756315863748,-480.0,0.00022191,2]
[381702877,1756315863758,-480.0,0.00022191,2]
[381702879,1756315863767,-480.0,0.00022191,2]
[381702881,1756315863777,-480.0,0.00022191,2]
[381702883,1756315863787,-480.0,0.00022191,2]
[381702885,1756315863796,-480.0,0.00022191,2]
[381702887,1756315863809,-480.0,0.00022191,2]
[381702889,1756315863819,-734.05,0.00022191,2]
[381702891,1756315863830,-487.48,0.00022191,2]
[381702893,1756315863840,-480.0,0.00022191,2]
[381702895,1756315863850,-480.0,0.00022191,2]
[381702897,1756315863860,-480.0,0.00022191,2]
[381702899,1756315863870,-480.0,0.00022191,2]
[381702901,1756315863880,-861.84,0.00022191,2]
[381702903,1756315863889,-480.0,0.00022191,2]
[381702904,1756315863899,-480.0,0.00022191,2]
[381702907,1756315863909,-480.0,0.00022191,2]
[381702909,1756315863919,-480.0,0.00022191,2]
[381702911,1756315863928,-480.0,0.00022191,2]
[381702913,1756315863937,-1000.0,0.00022191,2]
[381702914,1756315863947,-481.04281438,0.00022191,2]
[381702916,1756315863956,-480.0,0.00022191,2]
[381702918,1756315863966,-480.0,0.00022191,2]
[381702920,1756315863976,-480.0,0.00022191,2]
[381702922,1756315863985,-480.0,0.00022191,2]
[381702924,1756315863994,-480.0,0.00022191,2]
[381702927,1756315864007,-1003.54,0.00022191,2]
[381702929,1756315864017,-480.0,0.00022191,2]
[381702931,1756315864028,-480.0,0.00022191,2]
[381702933,1756315864037,-480.0,0.00022191,2]
[381702935,1756315864048,-480.0,0.00022191,2]
[381702937,1756315864058,-480.0,0.00022191,2]
[381702939,1756315864068,-353.46576601,0.00022191,2]
[381702941,1756315864077,-480.0,0.00022191,2]
[381702943,1756315864087,-480.0,0.00022191,2]
[381702945,1756315864096,-480.0,0.00022191,2]
[381702947,1756315864105,-480.0,0.00022191,2]
[381702949,1756315864115,-547.19,0.00022191,2]
[381702951,1756315864124,-480.0,0.00022191,2]
[381702953,1756315864134,-591.49,0.00022191,2]
[381702955,1756315864144,-480.0,0.00022191,2]
[381702957,1756315864153,-480.0,0.00022191,2]
[381702958,1756315864162,-480.0,0.00022191,2]
[381702960,1756315864172,-480.0,0.00022191,2]
[381702962,1756315864181,-480.0,0.00022191,2]
[381702964,1756315864191,-480.0,0.00022191,2]
[381702966,1756315864201,-480.0,0.00022191,2]
[381702968,1756315864210,-480.0,0.00022191,2]
[381702970,1756315864220,-480.0,0.00022191,2]
[381702972,1756315864230,-480.0,0.00022191,2]
[381702974,1756315864239,-480.0,0.00022191,2]
[381702976,1756315864249,-501.98,0.00022191,2]
[381702978,1756315864258,-480.0,0.00022191,2]
[381702980,1756315864268,-480.0,0.00022191,2]
[381702982,1756315864277,-480.0,0.00022191,2]
[381702984,1756315864286,-481.73133836,0.00022191,2]